fUSD/lending_fUSD_20260512
["ID","MTS","AMOUNT","RATE_DAILY","PERIOD"]
[422072895,1778550645000,-500.0,0.00037105,15]
[422072889,1778550645000,-500.0,0.00037105,15]
[422072886,1778550645000,-500.0,0.00037105,15]
[422072888,1778550645000,-152.0,0.00037105,15]
[422072901,1778550645000,-151.0,0.00037105,15]
[422072899,1778550645000,-151.0,0.00037105,15]
[422072898,1778550645000,-151.0,0.00037105,15]
[422072900,1778550645000,-151.0,0.00037105,15]
[422072892,1778550645000,-201.93286099,0.00037105,15]
[422072902,1778550645000,-151.0,0.00037105,15]
[422072893,1778550645000,-500.0,0.00037105,15]
[422072894,1778550645000,-209.40437684,0.00037105,15]
[422072877,1778550645000,-152.0,0.00037105,15]
[422072884,1778550645000,-181.08010149,0.00037105,15]
[422072874,1778550645000,-152.0,0.00037105,15]
[422072861,1778550645000,-200.0,0.00037105,15]
[422072871,1778550645000,-200.0,0.00037105,15]
[422072896,1778550645000,-217.15233878,0.00037105,15]
[422072849,1778550645000,-500.0,0.00037105,15]
[422072850,1778550645000,-200.0,0.00037105,15]
[422072848,1778550645000,-151.0,0.00037105,15]
[422072847,1778550645000,-152.0,0.00037105,15]
[422072853,1778550645000,-500.0,0.00037105,15]
[422072851,1778550645000,-152.0,0.00037105,15]
[422072852,1778550645000,-151.0,0.00037105,15]
[422072855,1778550645000,-152.0,0.00037105,15]
[422072856,1778550645000,-151.0,0.00037105,15]
[422072854,1778550645000,-500.0,0.00037105,15]
[422072868,1778550645000,-500.0,0.00037105,15]
[422072858,1778550645000,-500.0,0.00037105,15]
[422072857,1778550645000,-200.0,0.00037105,15]
[422072859,1778550645000,-500.0,0.00037105,15]
[422072862,1778550645000,-500.0,0.00037105,15]
[422072860,1778550645000,-152.0,0.00037105,15]
[422072865,1778550645000,-152.0,0.00037105,15]
[422072863,1778550645000,-500.0,0.00037105,15]
[422072866,1778550645000,-200.0,0.00037105,15]
[422072867,1778550645000,-500.0,0.00037105,15]
[422072864,1778550645000,-151.0,0.00037105,15]
[422072870,1778550645000,-152.0,0.00037105,15]
[422072873,1778550645000,-151.0,0.00037105,15]
[422072875,1778550645000,-209.79200169,0.00037105,15]
[422072872,1778550645000,-500.0,0.00037105,15]
[422072903,1778550645000,-151.0,0.00037105,15]
[422072897,1778550645000,-231.82907959,0.00037105,15]
[422072946,1778550645000,-1546.0,0.00038329,120]
[422072933,1778550645000,-275.32714793,0.000381,33]
[422072936,1778550645000,-374.3,0.00038125,30]
[422072937,1778550645000,-166.8175,0.00038155,7]
[422072939,1778550645000,-183.63,0.00038276,60]
[422072948,1778550645000,-1451.9284072,0.00038329,120]
[422072941,1778550645000,-39326.1736,0.00038296,30]
[422072942,1778550645000,-1785.5,0.00038329,120]
[422072940,1778550645000,-535.45,0.00038276,60]
[422072945,1778550645000,-1546.0,0.00038329,120]
[422072947,1778550645000,-158.82843331,0.00038329,120]
[422072944,1778550645000,-2467.0,0.00038329,120]
[422072943,1778550645000,-1785.5,0.00038329,120]
[422072950,1778550645000,-3108.1794,0.00038351,2]
[422072958,1778550645000,-299.22830184,0.00038356,2]
[422072959,1778550645000,-505.95760392,0.00038356,2]
[422072960,1778550645000,-150.0,0.00038356,10]
[422072951,1778550645000,-310.8023,0.00038351,2]
[422072954,1778550645000,-500.0,0.00038356,2]
[422072949,1778550645000,-1451.9284072,0.00038329,120]
[422072952,1778550645000,-500.0,0.00038356,2]
[422072953,1778550645000,-500.0,0.00038356,2]
[422072956,1778550645000,-500.0,0.00038356,2]
[422072957,1778550645000,-500.0,0.00038356,2]
[422072904,1778550645000,-151.0,0.00037105,15]
[422072955,1778550645000,-500.0,0.00038356,2]
[422072932,1778550645000,-531.33,0.000381,90]
[422072928,1778550645000,-3176.4,0.000377,14]
[422072938,1778550645000,-296.62,0.00038276,60]
[422072930,1778550645000,-901.404,0.00037971,50]
[422072906,1778550645000,-151.0,0.00037105,15]
[422072912,1778550645000,-234.68456867,0.00037105,15]
[422072905,1778550645000,-151.0,0.00037105,15]
[422072909,1778550645000,-151.0,0.00037105,15]
[422072913,1778550645000,-151.0,0.00037105,15]
[422072907,1778550645000,-151.0,0.00037105,15]
[422072911,1778550645000,-151.0,0.00037105,15]
[422072908,1778550645000,-211.40802048,0.00037105,15]
[422072910,1778550645000,-219.23011724,0.00037105,15]
[422072934,1778550645000,-166.43,0.000381,30]
[422072924,1778550645000,-174.0,0.00037201,120]
[422072915,1778550645000,-862226.0823312,0.0003712,2]
[422072925,1778550645000,-155.20974893,0.0003734,14]
[422072916,1778550645000,-21039.659786,0.0003712,2]
[422072914,1778550645000,-151.0,0.00037105,15]
[422072921,1778550645000,-150.79009377,0.00037173,5]
[422072931,1778550645000,-5000.0,0.00038,39]
[422072926,1778550645000,-649.5192395,0.00037362,120]
[422072929,1778550645000,-221.31,0.00037947,90]
[422072927,1778550645000,-5000.0,0.00037363,2]
[422072923,1778550645000,-170.54795026,0.000372,120]
[422072935,1778550645000,-213.9,0.000381,90]
[422072920,1778550645000,-34772.02571038,0.0003712,2]
[422072919,1778550645000,-151.0,0.0003712,7]
[422072918,1778550645000,-14395.9515564,0.0003712,2]
[422072917,1778550645000,-10293.0801449,0.0003712,2]
[422072922,1778550645000,-475.57,0.000372,7]
[422073000,1778550646000,-171.0,0.00038816,120]
[422072999,1778550646000,-170.0,0.000388,120]
[422072998,1778550646000,-11554.7987495,0.000388,30]
[422072997,1778550646000,-512.14288145,0.00038797,120]
[422073004,1778550646000,-601.0,0.00038877,120]
[422072996,1778550646000,-189.0,0.00038781,120]
[422072987,1778550646000,-18742.73606384,0.00038673,10]
[422072989,1778550646000,-786.0,0.00038695,5]
[422072992,1778550646000,-485.728556,0.00038735,2]
[422073001,1778550646000,-172.0,0.00038816,120]
[422072991,1778550646000,-38542.17374256,0.00038735,2]
[422073003,1778550646000,-194.82682534,0.0003885,30]
[422073018,1778550646000,-1562.0,0.00038904,30]
[422073006,1778550646000,-5800.0,0.00038894,14]
[422073015,1778550646000,-5800.0,0.00038902,14]
[422073007,1778550646000,-5800.0,0.00038894,14]
[422073008,1778550646000,-3108.1794,0.00038899,2]
[422073005,1778550646000,-5800.0,0.00038885,14]
[422073016,1778550646000,-5800.0,0.00038902,14]
[422073014,1778550646000,-429.41184255,0.000389,30]
[422073009,1778550646000,-174.0,0.000389,120]
[422073010,1778550646000,-2000.0,0.000389,7]
[422073011,1778550646000,-600.0,0.000389,14]
[422073013,1778550646000,-429.41184255,0.000389,30]
[422072990,1778550646000,-3176.4,0.000387,14]
[422073002,1778550646000,-196.0,0.00038824,120]
[422072995,1778550646000,-3108.1794,0.00038762,2]
[422072964,1778550646000,-150.0,0.00038356,5]
[422072993,1778550646000,-199.0,0.00038736,120]
[422072965,1778550646000,-250.0,0.00038359,5]
[422072963,1778550646000,-1562.0,0.00038356,30]
[422072968,1778550646000,-550.0,0.00038367,5]
[422072967,1778550646000,-450.0,0.00038364,5]
[422072961,1778550646000,-231.88832598,0.00038356,10]
[422072969,1778550646000,-650.0,0.0003837,5]
[422072962,1778550646000,-308.95302127,0.00038356,2]
[422072971,1778550646000,-200.0,0.00038413,6]
[422072972,1778550646000,-200.0,0.00038413,6]
[422072966,1778550646000,-350.0,0.00038362,5]
[422072970,1778550646000,-701.35194092,0.00038373,5]
[422072982,1778550646000,-152.0,0.00038662,30]
[422072988,1778550646000,-981.0,0.00038695,5]
[422072983,1778550646000,-25000.0,0.00038664,10]
[422072984,1778550646000,-491.93952673,0.00038671,10]
[422072974,1778550646000,-535.16374122,0.00038533,120]
[422072975,1778550646000,-1000.0,0.00038551,120]
[422072976,1778550646000,-50000.0,0.000386,120]
[422072977,1778550646000,-475.57,0.000386,30]
[422072978,1778550646000,-3108.1794,0.00038625,2]
[422072979,1778550646000,-152.0,0.00038627,30]
[422072980,1778550646000,-1562.0,0.0003863,30]
[422072981,1778550646000,-354.26605279,0.00038639,7]
[422072985,1778550646000,-318.31069902,0.00038672,2]
[422072986,1778550646000,-25000.0,0.00038673,10]
[422072994,1778550646000,-152.0,0.00038747,30]
[422072973,1778550646000,-3108.1794,0.00038488,2]
[422073028,1778550646000,-18650.58712055,0.00038974,2]
[422073012,1778550646000,-429.41184255,0.000389,30]
[422073029,1778550646000,-500.0,0.00039,30]
[422073048,1778550646000,-3989.2,0.00039059,120]
[422073047,1778550646000,-575.0222236,0.00039059,120]
[422073050,1778550646000,-1723.58,0.00039094,10]
[422073057,1778550646000,-588.74498874,0.00039164,120]
[422073055,1778550646000,-536.92285128,0.0003913,60]
[422073059,1778550646000,-512.14288145,0.00039172,120]
[422073061,1778550646000,-1562.0,0.00039178,30]
[422073060,1778550646000,-3108.1794,0.00039173,2]
[422073063,1778550646000,-535.16374122,0.00039183,120]
[422073062,1778550646000,-527.93568542,0.00039179,120]
[422073058,1778550646000,-575.0222236,0.00039172,120]
[422073064,1778550646000,-527.93568542,0.00039194,120]
[422073051,1778550646000,-527.93568542,0.00039116,120]
[422073065,1778550646000,-157.72,0.00039207,90]
[422073056,1778550646000,-523.48596293,0.00039152,120]
[422073067,1778550646000,-3108.1794,0.0003931,2]
[422073074,1778550646000,-183.579,0.00039452,120]
[422073075,1778550646000,-1562.0,0.00039452,30]
[422073077,1778550646000,-588.74498874,0.00039478,120]
[422073076,1778550646000,-500.0,0.00039452,5]
[422073068,1778550646000,-310.8023,0.0003931,2]
[422073072,1778550646000,-3108.1794,0.00039447,2]
[422073070,1778550646000,-3989.14,0.00039384,120]
[422073071,1778550646000,-523.48596293,0.00039437,120]
[422073073,1778550646000,-588.74498874,0.00039448,120]
[422073021,1778550646000,-1868.25665205,0.00038918,2]
[422073066,1778550646000,-588.45,0.00039207,90]
[422073049,1778550646000,-174.0,0.00039061,120]
[422073069,1778550646000,-535.16374122,0.00039377,120]
[422073043,1778550646000,-3108.1794,0.00039036,2]
[422073045,1778550646000,-575.0222236,0.00039041,120]
[422073017,1778550646000,-1734.62772924,0.00038903,30]
[422073019,1778550646000,-5800.0,0.00038911,14]
[422073027,1778550646000,-1248.22701659,0.00038953,14]
[422073022,1778550646000,-5800.0,0.00038919,14]
[422073023,1778550646000,-5800.0,0.00038928,14]
[422073025,1778550646000,-5800.0,0.00038945,14]
[422073026,1778550646000,-5800.0,0.00038953,14]
[422073024,1778550646000,-5800.0,0.00038936,14]
[422073030,1778550646000,-500.0,0.00039,30]
[422073031,1778550646000,-5000.0,0.00039,40]
[422073032,1778550646000,-1121.2875692,0.00039,7]
[422073040,1778550646000,-151.0,0.00039023,30]
[422073020,1778550646000,-5800.0,0.00038911,14]
[422073039,1778550646000,-155.38022443,0.00039022,120]
[422073041,1778550646000,-151.0,0.00039023,30]
[422073052,1778550646000,-527.93568542,0.00039116,120]
[422073054,1778550646000,-527.93568542,0.00039124,120]
[422073053,1778550646000,-523.48596293,0.00039123,120]
[422073044,1778550646000,-527.93568542,0.00039037,120]
[422073036,1778550646000,-150.0,0.00039022,120]
[422073046,1778550646000,-523.48596293,0.00039046,120]
[422073035,1778550646000,-150.0,0.00039022,120]
[422073038,1778550646000,-150.0,0.00039022,120]
[422073037,1778550646000,-150.0,0.00039022,120]
[422073033,1778550646000,-512.14288145,0.00039022,120]
[422073042,1778550646000,-151.0,0.00039023,30]
[422073034,1778550646000,-150.0,0.00039022,120]
[422073115,1778550647000,-900.0,0.00039945,30]
[422073122,1778550647000,-900.0,0.00039945,30]
[422073111,1778550647000,-900.0,0.00039945,30]
[422073108,1778550647000,-900.0,0.00039945,30]
[422073107,1778550647000,-33990.45368734,0.000399,120]
[422073110,1778550647000,-900.0,0.00039945,30]
[422073113,1778550647000,-900.0,0.00039945,30]
[422073114,1778550647000,-900.0,0.00039945,30]
[422073125,1778550647000,-900.0,0.00039945,30]
[422073109,1778550647000,-900.0,0.00039945,30]
[422073105,1778550647000,-668.31,0.000399,120]
[422073118,1778550647000,-900.0,0.00039945,30]
[422073116,1778550647000,-900.0,0.00039945,30]
[422073117,1778550647000,-900.0,0.00039945,30]
[422073119,1778550647000,-900.0,0.00039945,30]
[422073124,1778550647000,-900.0,0.00039945,30]
[422073126,1778550647000,-900.0,0.00039945,30]
[422073120,1778550647000,-900.0,0.00039945,30]
[422073128,1778550647000,-900.0,0.00039945,30]
[422073123,1778550647000,-900.0,0.00039945,30]
[422073129,1778550647000,-900.0,0.00039945,30]
[422073130,1778550647000,-900.0,0.00039945,30]
[422073131,1778550647000,-900.0,0.00039945,30]
[422073106,1778550647000,-338.86,0.000399,120]
[422073121,1778550647000,-900.0,0.00039945,30]
[422073103,1778550647000,-50000.0,0.000398,120]
[422073097,1778550647000,-575.0222236,0.00039731,120]
[422073112,1778550647000,-900.0,0.00039945,30]
[422073133,1778550647000,-900.0,0.00039945,30]
[422073078,1778550647000,-523.48596293,0.00039497,120]
[422073079,1778550647000,-60000.0,0.000395,120]
[422073081,1778550647000,-712.27328016,0.00039551,2]
[422073080,1778550647000,-527.93568542,0.00039515,120]
[422073083,1778550647000,-3108.1794,0.00039584,2]
[422073082,1778550647000,-937.0936,0.00039581,30]
[422073084,1778550647000,-170.07819498,0.00039645,120]
[422073086,1778550647000,-164.0,0.0003968,11]
[422073085,1778550647000,-1000.0,0.00039651,120]
[422073088,1778550647000,-523.48596293,0.00039699,120]
[422073089,1778550647000,-193.03,0.000397,16]
[422073087,1778550647000,-1911.0,0.0003969,120]
[422073090,1778550647000,-3176.4,0.000397,14]
[422073094,1778550647000,-3108.1794,0.00039721,2]
[422073099,1778550647000,-30000.0,0.00039753,60]
[422073092,1778550647000,-523.48596293,0.00039709,120]
[422073091,1778550647000,-3989.14,0.00039709,120]
[422073095,1778550647000,-500.0,0.00039726,120]
[422073098,1778550647000,-588.74498874,0.00039748,120]
[422073100,1778550647000,-523.48596293,0.00039763,120]
[422073096,1778550647000,-1562.0,0.00039726,30]
[422073093,1778550647000,-1244.9685,0.00039716,120]
[422073101,1778550647000,-588.74498874,0.00039776,120]
[422073102,1778550647000,-389.83,0.000398,120]
[422073104,1778550647000,-3108.1794,0.00039858,2]
[422073143,1778550647000,-900.0,0.00039945,30]
[422073144,1778550647000,-900.0,0.00039945,30]
[422073140,1778550647000,-900.0,0.00039945,30]
[422073166,1778550647000,-151.0,0.00039999,30]
[422073165,1778550647000,-500.0,0.00039999,30]
[422073164,1778550647000,-3023.08268076,0.00039999,2]
[422073168,1778550647000,-557.5788265,0.00039999,30]
[422073173,1778550647000,-1235.18214925,0.00039999,43]
[422073175,1778550647000,-464.05848484,0.00039999,30]
[422073176,1778550647000,-152.0,0.00039999,30]
[422073184,1778550647000,-2345.0,0.00039999,30]
[422073174,1778550647000,-151.0,0.00039999,43]
[422073177,1778550647000,-152.0,0.00039999,41]
[422073180,1778550647000,-500.0,0.00039999,41]
[422073183,1778550647000,-151.0,0.00039999,30]
[422073182,1778550647000,-168.3888056,0.00039999,30]
[422073181,1778550647000,-500.0,0.00039999,43]
[422073178,1778550647000,-152.0,0.00039999,43]
[422073186,1778550647000,-1366.07479456,0.00039999,41]
[422073185,1778550647000,-151.0,0.00039999,41]
[422073189,1778550647000,-1672.7364795,0.00039999,30]
[422073190,1778550647000,-196.59114265,0.00039999,41]
[422073187,1778550647000,-151.0,0.00039999,43]
[422073193,1778550647000,-174.21697164,0.00039999,41]
[422073188,1778550647000,-189.57680101,0.00039999,30]
[422073191,1778550647000,-203.86501493,0.00039999,43]
[422073192,1778550647000,-168.3888056,0.00039999,30]
[422073132,1778550647000,-900.0,0.00039945,30]
[422073172,1778550647000,-500.0,0.00039999,43]
[422073163,1778550647000,-1047.44266873,0.00039999,30]
[422073179,1778550647000,-500.0,0.00039999,30]
[422073162,1778550647000,-3108.1794,0.00039995,2]
[422073139,1778550647000,-900.0,0.00039945,30]
[422073169,1778550647000,-500.0,0.00039999,41]
[422073134,1778550647000,-900.0,0.00039945,30]
[422073142,1778550647000,-900.0,0.00039945,30]
[422073141,1778550647000,-900.0,0.00039945,30]
[422073138,1778550647000,-900.0,0.00039945,30]
[422073137,1778550647000,-900.0,0.00039945,30]
[422073136,1778550647000,-900.0,0.00039945,30]
[422073146,1778550647000,-900.0,0.00039945,30]
[422073158,1778550647000,-170.0,0.00039945,30]
[422073157,1778550647000,-900.0,0.00039945,30]
[422073145,1778550647000,-900.0,0.00039945,30]
[422073149,1778550647000,-900.0,0.00039945,30]
[422073135,1778550647000,-900.0,0.00039945,30]
[422073151,1778550647000,-900.0,0.00039945,30]
[422073167,1778550647000,-1148.61238259,0.00039999,30]
[422073160,1778550647000,-402.93465867,0.0003997,2]
[422073171,1778550647000,-151.0,0.00039999,41]
[422073170,1778550647000,-1191.11104075,0.00039999,41]
[422073153,1778550647000,-900.0,0.00039945,30]
[422073161,1778550647000,-1483.54939322,0.00039987,120]
[422073150,1778550647000,-900.0,0.00039945,30]
[422073147,1778550647000,-900.0,0.00039945,30]
[422073159,1778550647000,-400.0,0.0003997,2]
[422073148,1778550647000,-900.0,0.00039945,30]
[422073155,1778550647000,-900.0,0.00039945,30]
[422073243,1778550648000,-10000.77093664,0.0004,5]
[422073227,1778550648000,-10057.71492933,0.0004,30]
[422073246,1778550648000,-754.88,0.0004,120]
[422073234,1778550648000,-400.88,0.0004,120]
[422073235,1778550648000,-207.11,0.0004,120]
[422073228,1778550648000,-151.0,0.0004,30]
[422073222,1778550648000,-2438.79704164,0.0004,120]
[422073232,1778550648000,-655.72,0.0004,120]
[422073226,1778550648000,-2045.0462,0.0004,10]
[422073231,1778550648000,-311.54,0.0004,120]
[422073230,1778550648000,-151.0,0.0004,30]
[422073245,1778550648000,-22500.0,0.0004,120]
[422073233,1778550648000,-371.71,0.0004,120]
[422073244,1778550648000,-9842.27413084,0.0004,6]
[422073254,1778550648000,-500.0,0.0004,120]
[422073236,1778550648000,-161.0,0.0004,120]
[422073238,1778550648000,-475.57,0.0004,30]
[422073240,1778550648000,-152.0,0.0004,120]
[422073239,1778550648000,-150.0,0.0004,26]
[422073241,1778550648000,-22500.0,0.0004,120]
[422073237,1778550648000,-18619.0,0.0004,120]
[422073247,1778550648000,-213.23,0.0004,120]
[422073249,1778550648000,-17260.94,0.0004,120]
[422073253,1778550648000,-500.0,0.0004,120]
[422073255,1778550648000,-500.0,0.0004,120]
[422073252,1778550648000,-500.0,0.0004,120]
[422073250,1778550648000,-819.56165747,0.0004,120]
[422073229,1778550648000,-151.0,0.0004,30]
[422073242,1778550648000,-438.0,0.0004,120]
[422073223,1778550648000,-369.74860975,0.0004,2]
[422073195,1778550648000,-204.14758129,0.0004,30]
[422073225,1778550648000,-2003.3702078,0.0004,30]
[422073251,1778550648000,-151.0,0.0004,7]
[422073196,1778550648000,-90892.43156997,0.0004,50]
[422073194,1778550648000,-1562.0,0.0004,30]
[422073197,1778550648000,-348.13696481,0.0004,120]
[422073201,1778550648000,-363.15938531,0.0004,15]
[422073208,1778550648000,-210.0,0.0004,30]
[422073199,1778550648000,-6578.11053214,0.0004,120]
[422073204,1778550648000,-201.09926868,0.0004,120]
[422073200,1778550648000,-116845.1804362,0.0004,120]
[422073202,1778550648000,-3000.0,0.0004,7]
[422073198,1778550648000,-334.20272563,0.0004,120]
[422073203,1778550648000,-245.77104992,0.0004,120]
[422073206,1778550648000,-74582.45924625,0.0004,30]
[422073224,1778550648000,-556.89,0.0004,7]
[422073205,1778550648000,-10111.78230676,0.0004,120]
[422073220,1778550648000,-398.61251282,0.0004,120]
[422073210,1778550648000,-5000.0,0.0004,41]
[422073209,1778550648000,-159.7094816,0.0004,30]
[422073211,1778550648000,-2017.42343176,0.0004,120]
[422073213,1778550648000,-435.74100092,0.0004,7]
[422073212,1778550648000,-553.94458486,0.0004,120]
[422073216,1778550648000,-241.36821009,0.0004,120]
[422073215,1778550648000,-5081.549999,0.0004,120]
[422073214,1778550648000,-909.59,0.0004,120]
[422073218,1778550648000,-322204.34613043,0.0004,30]
[422073219,1778550648000,-731.52074262,0.0004,120]
[422073217,1778550648000,-1011.60003444,0.0004,7]
[422073221,1778550648000,-194.77197129,0.0004,120]
[422073207,1778550648000,-2068.38,0.0004,60]
[422073248,1778550648000,-445.02,0.0004,120]
[422073272,1778550648000,-500.0,0.0004,120]
[422073256,1778550648000,-500.0,0.0004,120]
[422073289,1778550648000,-5027.373871,0.0004,20]
[422073295,1778550648000,-2048.39887577,0.0004,120]
[422073287,1778550648000,-5027.373871,0.0004,20]
[422073288,1778550648000,-5027.373871,0.0004,20]
[422073293,1778550648000,-5027.373871,0.0004,20]
[422073291,1778550648000,-5027.373871,0.0004,20]
[422073292,1778550648000,-5027.373871,0.0004,20]
[422073297,1778550648000,-2987.6011,0.00040016,30]
[422073300,1778550648000,-161.89,0.0004013,120]
[422073302,1778550648000,-6002.44267795,0.00040136,12]
[422073298,1778550648000,-3989.14,0.00040033,120]
[422073309,1778550648000,-6002.44267792,0.00040136,12]
[422073299,1778550648000,-150.15099589,0.000401,30]
[422073285,1778550648000,-500.0,0.0004,120]
[422073308,1778550648000,-6002.44267792,0.00040136,12]
[422073305,1778550648000,-6002.44267792,0.00040136,12]
[422073304,1778550648000,-6002.44267792,0.00040136,12]
[422073303,1778550648000,-6002.44267792,0.00040136,12]
[422073307,1778550648000,-6002.44267792,0.00040136,12]
[422073310,1778550648000,-6002.44267792,0.00040136,12]
[422073311,1778550648000,-6002.44267792,0.00040136,12]
[422073317,1778550648000,-1562.0,0.00040274,30]
[422073313,1778550648000,-192.89392156,0.00040186,120]
[422073314,1778550648000,-3108.1803,0.00040269,2]
[422073312,1778550648000,-151.0,0.00040136,7]
[422073315,1778550648000,-310.8024,0.00040269,2]
[422073316,1778550648000,-1562.0,0.00040274,30]
[422073260,1778550648000,-500.0,0.0004,120]
[422073301,1778550648000,-3108.1794,0.00040132,2]
[422073290,1778550648000,-5027.373871,0.0004,20]
[422073306,1778550648000,-6002.44267792,0.00040136,12]
[422073294,1778550648000,-5027.373871,0.0004,20]
[422073296,1778550648000,-1121.0,0.0004,30]
[422073259,1778550648000,-500.0,0.0004,120]
[422073257,1778550648000,-500.0,0.0004,120]
[422073258,1778550648000,-500.0,0.0004,120]
[422073318,1778550648000,-280.0,0.00040289,120]
[422073262,1778550648000,-500.0,0.0004,120]
[422073261,1778550648000,-500.0,0.0004,120]
[422073265,1778550648000,-500.0,0.0004,120]
[422073263,1778550648000,-500.0,0.0004,120]
[422073267,1778550648000,-500.0,0.0004,120]
[422073271,1778550648000,-500.0,0.0004,120]
[422073268,1778550648000,-500.0,0.0004,120]
[422073266,1778550648000,-500.0,0.0004,120]
[422073270,1778550648000,-500.0,0.0004,120]
[422073264,1778550648000,-500.0,0.0004,120]
[422073273,1778550648000,-298.99301472,0.0004,120]
[422073286,1778550648000,-218.15135435,0.0004,120]
[422073269,1778550648000,-500.0,0.0004,120]
[422073280,1778550648000,-500.0,0.0004,120]
[422073274,1778550648000,-500.0,0.0004,120]
[422073276,1778550648000,-500.0,0.0004,120]
[422073281,1778550648000,-500.0,0.0004,120]
[422073282,1778550648000,-500.0,0.0004,120]
[422073279,1778550648000,-500.0,0.0004,120]
[422073283,1778550648000,-500.0,0.0004,120]
[422073278,1778550648000,-500.0,0.0004,120]
[422073284,1778550648000,-500.0,0.0004,120]
[422073277,1778550648000,-500.0,0.0004,120]
[422073275,1778550648000,-500.0,0.0004,120]
[422073353,1778550649000,-3822.63757246,0.00040489,7]
[422073343,1778550649000,-151.0,0.00040488,30]
[422073340,1778550649000,-234.0,0.00040483,120]
[422073346,1778550649000,-3822.63757246,0.00040489,7]
[422073352,1778550649000,-3822.63757246,0.00040489,7]
[422073350,1778550649000,-3822.63757246,0.00040489,7]
[422073341,1778550649000,-151.0,0.00040488,30]
[422073351,1778550649000,-3822.63757246,0.00040489,7]
[422073348,1778550649000,-3822.63757246,0.00040489,7]
[422073342,1778550649000,-151.0,0.00040488,30]
[422073344,1778550649000,-3822.63757246,0.00040489,7]
[422073347,1778550649000,-3822.63757246,0.00040489,7]
[422073349,1778550649000,-3822.63757246,0.00040489,7]
[422073354,1778550649000,-3822.63757246,0.00040489,7]
[422073339,1778550649000,-399.0,0.00040427,120]
[422073357,1778550649000,-2778.80355088,0.00040489,7]
[422073345,1778550649000,-3822.63757246,0.00040489,7]
[422073338,1778550649000,-22250.7585998,0.000404,120]
[422073323,1778550649000,-22917.41,0.00032393,60]
[422073335,1778550649000,-3517.45951613,0.00040366,10]
[422073358,1778550649000,-5286.41097767,0.000405,120]
[422073319,1778550649000,-150.58,0.0004029,60]
[422073320,1778550649000,-407.94,0.0004029,60]
[422073321,1778550649000,-251679.4388073,0.000403,120]
[422073322,1778550649000,-483.08046,0.000403,120]
[422073326,1778550649000,-350.0,0.00033973,5]
[422073325,1778550649000,-22917.41,0.00033642,60]
[422073327,1778550649000,-22917.41,0.00034891,90]
[422073328,1778550649000,-350.0,0.00034931,5]
[422073324,1778550649000,-5156.40079737,0.00033266,2]
[422073329,1778550649000,-22917.41,0.0003614,90]
[422073331,1778550649000,-199554.22299213,0.000403,120]
[422073330,1778550649000,-300.0,0.00037011,2]
[422073332,1778550649000,-150.0,0.00040336,120]
[422073337,1778550649000,-12894.63,0.00040375,120]
[422073334,1778550649000,-3989.14,0.00040358,120]
[422073333,1778550649000,-318.45343967,0.00040349,120]
[422073336,1778550649000,-22500.0,0.00040375,120]
[422073356,1778550649000,-3822.63757246,0.00040489,7]
[422073361,1778550649000,-160.35669356,0.000405,60]
[422073360,1778550649000,-160.08826997,0.000405,120]
[422073387,1778550649000,-1613.0535,0.00040545,30]
[422073386,1778550649000,-264.01940454,0.00040545,30]
[422073384,1778550649000,-151.0,0.00040545,30]